Workbook

Sheet STROŠKI PRENOVE
B1: DELOVNI LIST STROŠKI PRENOVE KUHINJE
B3: Kategorija | C3: Elementi | D3: Količina | E3: Predvideni stroški | F3: Dejanski stroški | G3: Skupni predvideni stroški | H3: Skupni dejanski stroški
B4: Omarice | C4: Spodnje omarice: Modularne standardne (količina v cm) | D4: 25 | E4: 5.00 € | G4: =Podatki[[#This Row],[Količina]]*Podatki[[#This Row],[Predvideni stroški]] -> 125 € | H4: =Podatki[[#This Row],[Količina]]*Podatki[[#This Row],[Dejanski stroški]] -> 0 €
B5: Omarice | C5: Zgornje omarice: Modularne standardne (količina v cm) | D5: 25 | E5: 3.50 € | G5: =Podatki[[#This Row],[Količina]]*Podatki[[#This Row],[Predvideni stroški]] -> 88 € | H5: =Podatki[[#This Row],[Količina]]*Podatki[[#This Row],[Dejanski stroški]] -> 0 €
B6: Naprave za čiščenje | C6: Pomivalni stroj: Standard | D6: 1 | E6: 250.00 € | G6: =Podatki[[#This Row],[Količina]]*Podatki[[#This Row],[Predvideni stroški]] -> 250 € | H6: =Podatki[[#This Row],[Količina]]*Podatki[[#This Row],[Dejanski stroški]] -> 0 €
B7: Naprave za čiščenje | C7: Odstranjevanje: Standard | D7: 1 | E7: 175.00 € | G7: =Podatki[[#This Row],[Količina]]*Podatki[[#This Row],[Predvideni stroški]] -> 175 € | H7: =Podatki[[#This Row],[Količina]]*Podatki[[#This Row],[Dejanski stroški]] -> 0 €
B8: Naprave za kuhanje | C8: Obseg: Vgradni standardni | D8: 1 | E8: 375.00 € | G8: =Podatki[[#This Row],[Količina]]*Podatki[[#This Row],[Predvideni stroški]] -> 375 € | H8: =Podatki[[#This Row],[Količina]]*Podatki[[#This Row],[Dejanski stroški]] -> 0 €
B9: Naprave za kuhanje | C9: Mikrovalovka: Standard | D9: 1 | E9: 300.00 € | G9: =Podatki[[#This Row],[Količina]]*Podatki[[#This Row],[Predvideni stroški]] -> 300 € | H9: =Podatki[[#This Row],[Količina]]*Podatki[[#This Row],[Dejanski stroški]] -> 0 €
B10: Pulti | C10: Površine (količina v cm) | D10: 23 | E10: 10.00 € | G10: =Podatki[[#This Row],[Količina]]*Podatki[[#This Row],[Predvideni stroški]] -> 230 € | H10: =Podatki[[#This Row],[Količina]]*Podatki[[#This Row],[Dejanski stroški]] -> 0 €
B11: Vrata | C11: Notranjost: Furnirane plošče | D11: 1 | E11: 65.00 € | G11: =Podatki[[#This Row],[Količina]]*Podatki[[#This Row],[Predvideni stroški]] -> 65 € | H11: =Podatki[[#This Row],[Količina]]*Podatki[[#This Row],[Dejanski stroški]] -> 0 €
B12: Dodatki | C12: Dodatki: Hitri grelnik vode | D12: 1 | E12: 120.00 € | G12: =Podatki[[#This Row],[Količina]]*Podatki[[#This Row],[Predvideni stroški]] -> 120 € | H12: =Podatki[[#This Row],[Količina]]*Podatki[[#This Row],[Dejanski stroški]] -> 0 €
B13: Dodatki | C13: Dodatki: Pipa za milo | D13: 1 | E13: 40.00 € | G13: =Podatki[[#This Row],[Količina]]*Podatki[[#This Row],[Predvideni stroški]] -> 40 € | H13: =Podatki[[#This Row],[Količina]]*Podatki[[#This Row],[Dejanski stroški]] -> 0 €
B14: Pipe | C14: Pipa: Z ročico, standardna | D14: 1 | E14: 130.00 € | G14: =Podatki[[#This Row],[Količina]]*Podatki[[#This Row],[Predvideni stroški]] -> 130 € | H14: =Podatki[[#This Row],[Količina]]*Podatki[[#This Row],[Dejanski stroški]] -> 0 €
B15: Tla | C15: Laminat (količina v kvadratnih metrih) | D15: 165 | E15: 3.50 € | G15: =Podatki[[#This Row],[Količina]]*Podatki[[#This Row],[Predvideni stroški]] -> 578 € | H15: =Podatki[[#This Row],[Količina]]*Podatki[[#This Row],[Dejanski stroški]] -> 0 €
B16: Pralni in sušilni stroj | C16: Pralni stroj: Standard | D16: 1 | E16: 500.00 € | G16: =Podatki[[#This Row],[Količina]]*Podatki[[#This Row],[Predvideni stroški]] -> 500 € | H16: =Podatki[[#This Row],[Količina]]*Podatki[[#This Row],[Dejanski stroški]] -> 0 €
B17: Pralni in sušilni stroj | C17: Sušilni stroj: Standard | D17: 1 | E17: 375.00 € | G17: =Podatki[[#This Row],[Količina]]*Podatki[[#This Row],[Predvideni stroški]] -> 375 € | H17: =Podatki[[#This Row],[Količina]]*Podatki[[#This Row],[Dejanski stroški]] -> 0 €
B18: Osvetlitev | C18: Osvetlitev: Vgradna svetila | D18: 4 | E18: 35.00 € | G18: =Podatki[[#This Row],[Količina]]*Podatki[[#This Row],[Predvideni stroški]] -> 140 € | H18: =Podatki[[#This Row],[Količina]]*Podatki[[#This Row],[Dejanski stroški]] -> 0 €
B19: Hladilniki | C19: Hladilnik: Samostoječi, luksuzen | D19: 1 | E19: 1,200.00 € | G19: =Podatki[[#This Row],[Količina]]*Podatki[[#This Row],[Predvideni stroški]] -> 1,200 € | H19: =Podatki[[#This Row],[Količina]]*Podatki[[#This Row],[Dejanski stroški]] -> 0 €
B20: Korita | C20: Dvojno korito, nerjaveče jeklo, luksuzno | D20: 1 | E20: 125.00 € | G20: =Podatki[[#This Row],[Količina]]*Podatki[[#This Row],[Predvideni stroški]] -> 125 € | H20: =Podatki[[#This Row],[Količina]]*Podatki[[#This Row],[Dejanski stroški]] -> 0 €
B21: Ventilacija | C21: Napa: Z odvodom, standardna | D21: 1 | E21: 180.00 € | G21: =Podatki[[#This Row],[Količina]]*Podatki[[#This Row],[Predvideni stroški]] -> 180 € | H21: =Podatki[[#This Row],[Količina]]*Podatki[[#This Row],[Dejanski stroški]] -> 0 €
B22: Stene | C22: Stenska omarica (v kvadratnih metrih) | D22: 70 | E22: 2.00 € | G22: =Podatki[[#This Row],[Količina]]*Podatki[[#This Row],[Predvideni stroški]] -> 140 € | H22: =Podatki[[#This Row],[Količina]]*Podatki[[#This Row],[Dejanski stroški]] -> 0 €
B23: Okna | C23: Drsna | D23: 2 | E23: 120.00 € | G23: =Podatki[[#This Row],[Količina]]*Podatki[[#This Row],[Predvideni stroški]] -> 240 € | H23: =Podatki[[#This Row],[Količina]]*Podatki[[#This Row],[Dejanski stroški]] -> 0 €
B24: Drugo | G24: =Podatki[[#This Row],[Količina]]*Podatki[[#This Row],[Predvideni stroški]] -> 0 € | H24: =Podatki[[#This Row],[Količina]]*Podatki[[#This Row],[Dejanski stroški]] -> 0 €
B25: Skupaj | E25: =SUBTOTAL(109,Podatki[Predvideni stroški]) -> 4,014.00 € | F25: =SUBTOTAL(109,Podatki[Dejanski stroški]) -> 0.00 € | G25: =SUBTOTAL(109,Podatki[Skupni predvideni stroški]) -> 5,375.00 € | H25: =SUBTOTAL(109,Podatki[Skupni dejanski stroški]) -> 0.00 €
B26: Delna_vsota | G26: =SUBTOTAL(109,Podatki[Skupni predvideni stroški]) -> 5,375.00 € | H26: =SUBTOTAL(109,Podatki[Skupni dejanski stroški]) -> 0.00 €
B27: Nepričakovani stroški – dodaj 30 % | G27: =G26*0.3 -> 1,612.50 € | H27: =H26*0.3 -> 0.00 €
B28: Skupaj | G28: =SUM(G26:G27) -> 6,987.50 € | H28: =SUM(H26:H27) -> 0.00 €
